Cogmind - Beta 11 --- EXPLORER MODE // 2022.04.17 @ 10:45:56 Player: MrDoodlezz Result: Destroyed by Y-45 Defender with Heavy Assault Rifle Performance ------------- Evolutions (1) 500 Regions Visited (3) 600 Robots Destroyed (100) 500 Value Destroyed (2113) 2113 Prototype IDs (6) 120 Alien Tech Used (0) 0 Bonus (0) 0 TOTAL SCORE: 3833 Bonus ------- None Cogmind --------- Core Integrity 0/400 Matter 155/300 Energy 250/250 System Corruption 3% Temperature Warning (362) Movement Walking (120) Location -9/Storage Parts ------- > --- POWER (2) -------- Ion Engine > --- PROPULSION (3) --- Aluminum Leg Aluminum Leg Improved Aluminum Leg > --- UTILITY (3) ------ Visual Processing Unit Improved Targeting Computer Hacking Suite > --- WEAPON (2) ------- Improved Medium Laser Advanced Beam Cannon > --- INVENTORY (5) ---- Field Recycling Unit (0) Beam Rifle Light EM Pulse Cannon Flail Peak State ------------ > --- POWER ------------ Light Ion Engine Heavy Ion Engine > --- PROPULSION ------- Improved Aluminum Leg Improved Flight Unit Improved Flight Unit > --- UTILITY ---------- Visual Processing Unit Improved Terrain Scanner Hacking Suite > --- WEAPON ----------- Beam Rifle Improved Medium Laser > --- INVENTORY -------- Aluminum Leg Aluminum Leg Huge Storage Unit Light Assault Rifle Mining Laser [Rating: 25] Favorites ----------- Power Light Nuclear Core Engine Improved Ion Engine Power Core Light Nuclear Core Propulsion Aluminum Leg Leg Aluminum Leg Wheel Compact Wheel Flight Unit Improved Flight Unit Utility Visual Processing Unit Device Improved Terrain Scanner Storage Huge Storage Unit Processor Visual Processing Unit Hackware Hacking Suite Weapon Improved Medium Laser Energy Gun Improved Medium Laser Energy Cannon Advanced Beam Cannon Ballistic Gun Assault Rifle Special Weapon Mining Laser Impact Weapon Flail Build | -11 -10 -9 -9 ------- Run | Scr Mat Mat Sto Slots Evolved 3 | . 1 2 . Power 1 | . . 1 . Propulsion 1 | . . 1 . Utility 1 | . 1 . . Weapon . | . . . . Parts Attached 77 | 5 19 37 16 Power 20 | 1 4 10 5 Engine 16 | 1 2 8 5 Core 4 | . 2 2 . Reactor . | . . . . Propulsion 24 | 2 6 9 7 Treads . | . . . . Leg 19 | 2 3 7 7 Wheel 3 | . 3 . . Hover . | . . . . Flight 2 | . . 2 . Utility 11 | 2 5 4 . Device 4 | 2 1 1 . Storage 2 | . 2 . . Processor 4 | . 2 2 . Hackware 1 | . . 1 . Protection . | . . . . Artifact . | . . . . Weapon 22 | . 4 14 4 Energy Gun 12 | . 3 8 1 Energy Cannon 3 | . . . 3 Ballistic Gun 4 | . 1 3 . Ballistic Cannon . | . . . . Launcher . | . . . . Special Weapon 2 | . . 2 . Impact Weapon 1 | . . 1 . Slashing Weapon . | . . . . Piercing Weapon . | . . . . Special Melee Weapon . | . . . . Unidentified Prototypes 4 | . . 4 . Parts Lost 10 | . 2 3 5 Power 4 | . . 1 3 Propulsion 2 | . 1 . 1 Utility 1 | . 1 . . Weapon 3 | . . 2 1 Highest Loss Streak 3 | . 1 2 3 To Critical Strikes . | . . . . Average Slot Usage (%) 94 | . 92 96 91 Engine 9 | . 4 10 12 Core 5 | . 7 6 1 Leg 26 | . 20 28 27 Device 5 | . 12 4 . Storage 5 | . 10 4 . Processor 14 | . 9 15 20 Hackware 4 | . . 5 10 Energy Gun 12 | . 12 15 4 Energy Cannon 1 | . . . 12 Ballistic Gun 3 | . 9 2 . Naked Turns . | . . . . Heaviest Build 99 | 8 91 99 20 Greatest Support 39 | 20 32 33 39 Greatest Overweight (x) 6 | . 5 6 1 Average Overweight (x) . | . 2 . . Largest Inventory Capacity 25 | 5 25 25 5 Average Capacity 13 | 5 17 14 5 Most Carried 10 | 5 7 10 5 Average Carried 4 | 2 3 5 4 Final Capacity 25 | 5 25 5 5 Final Carried 5 | 5 4 5 4 Class Distribution -------------------- 52% | Scavenger-Mutant 47% | Hacker-Mutant Dominant Class ---------------- Scavenger-Mutant | -10/Materials Scavenger-Mutant | -9/Materials Hacker-Mutant | -9/Storage Resources | -11 -10 -9 -9 ----------- Run | Scr Mat Mat Sto Matter Collected 1438 | 185 459 628 166 Remotely 241 | . 241 . . Salvage Created 3857 | . 454 2224 1179 Parts 224 | . 14 142 68 Haulers Intercepted 6 | . . 3 3 Recyclers Shooed 7 | . 1 4 2 Parts Field Recycled . | . . . . Retrieved Matter . | . . . . Parts Self-Destructed . | . . . . Prevented . | . . . . Kills | -11 -10 -9 -9 ------- Run | Scr Mat Mat Sto Combat Hostiles Destroyed 48 | . 3 29 16 Guns 37 | . 3 28 6 Cannons 8 | . . . 8 AOE 1 | . . 1 . Classes Destroyed 11 | . 4 7 . Worker 12 | . 1 7 4 Builder 9 | . . 6 3 Tunneler 2 | . . 2 . Hauler 6 | . . 3 3 Recycler 13 | . 3 7 3 Mechanic 1 | . . 1 . Operator 3 | . . 3 . Watcher 6 | . 1 5 . Swarmer 6 | . . 5 1 Grunt 27 | . 3 15 9 Sentry 15 | . . 9 6 Best Kill Streak 7 | . 2 6 7 Combat Bots Only 4 | . 2 4 3 Max Kills in Single Turn 3 | . 1 3 2 Gunslinging 1 | . . 1 . Exploded 1 | . . 1 . Melee . | . . . . Uniques/NPCs Destroyed . | . . . . Combat | -11 -10 -9 -9 -------- Run | Scr Mat Mat Sto Damage Taken 2314 | . 466 1050 798 Core 619 | . 217 210 192 Absorbed by Shields . | . . . . Regen/Repaired (Parts) 150 | . . 73 77 Core Remaining (%) 56 | 100 13 . . Volleys Fired 284 | . 46 170 68 Largest 2 | . 2 2 2 Hottest 156 | . 85 156 136 Shots Fired 446 | . 54 291 101 Gun 363 | . 54 269 40 Cannon 61 | . . . 61 Launcher . | . . . . Special 22 | . . 22 . Kinetic 95 | . 44 51 . Thermal 320 | . 10 218 92 Explosive . | . . . . Electromagnetic 31 | . . 22 9 Robot Hit Streak 33 | . 19 33 17 Robot Miss Streak 4 | . 2 4 2 Penetration Max . | . . . . Secondary Targets 7 | . 1 6 . Max Gunslinging Chain 1 | . 1 1 . Shots Hit Robots 319 | . 45 192 82 Core Hits 132 | . 17 85 30 Critical Kills 1 | . . 1 . Critical Parts Destroyed 3 | . 1 . 2 Critical Strikes 25 | . 1 17 7 Burn 20 | . . 16 4 Destroy 2 | . 1 1 . Smash 3 | . . . 3 Melee Attacks 15 | . . 1 14 Impact 15 | . . 1 14 Slashing . | . . . . Piercing . | . . . . Sneak Attacks 1 | . . . 1 Combat Hostiles . | . . . . Follow-up Attacks . | . . . . Damage Inflicted 5592 | . 658 3186 1748 Guns 3941 | . 512 2855 574 Cannons 879 | . . . 879 Explosions 300 | . . 300 . Melee 295 | . . . 295 Ramming 177 | . 146 31 . Kinetic 887 | . 418 469 . Thermal 3906 | . 94 2479 1333 Explosive . | . . . . Electromagnetic 327 | . . 207 120 Impact 295 | . . . 295 Slashing . | . . . . Piercing . | . . . . Highest Corruption 31 | . 31 1 3 Average Corruption 12 | . 29 1 1 Corruption Purged . | . . . . Corruption Blocked . | . . . . Effects 60 | . 50 4 6 Message Errors 13 | . 11 . 2 Matter Fused 17 | . 15 1 1 Heat Flow Errors 3 | . 2 1 . Energy Discharges 8 | . 6 . 2 Parts Rejected 1 | . . . 1 Data Loss (minor) 9 | . 8 1 . Data Loss (major) 3 | . 2 1 . Misfires 1 | . 1 . . Alerts 2 | . 2 . . Weapon Failures 3 | . 3 . . Overload Shots . | . . . . Overflow Damage 245 | . . 101 144 Projectiles 10 | . . . 10 Explosions 101 | . . 101 . Melee 134 | . . . 134 Knockbacks 1 | . . . 1 Impact 1 | . . . 1 Kinetic . | . . . . Secondary . | . . . . Self-Inflicted Damage 323 | . 145 178 . Shots 3 | . . 3 . Rammed 1 | . 1 . . Targets Rammed 3 | . 1 2 . Kicked 2 | . . 2 . Crushed . | . . . . Highest Temperature 590 | . 255 557 590 Average Temperature 153 | . 108 134 223 Received Heat Transfer 948 | . 108 480 360 Effects 69 | . . 26 43 Shutdowns 15 | . . 5 10 Energy Bleed 10 | . . 6 4 Interference 16 | . . 6 10 Matter Decay 6 | . . 3 3 Short Circuit 8 | . . 5 3 Damage (minor) 6 | . . . 6 Damage (major) 6 | . . . 6 Damage (core) 2 | . . 1 1 Siege Activations . | . . . . Robots Corrupted . | . . . . Combat Hostiles . | . . . . Parts Fried 3 | . . . 3 Impact Corruptions 6 | . . . 6 Robots Melted 1 | . . . 1 Combat Hostiles 1 | . . . 1 Parts Melted 17 | . . 11 6 Heat Transferred 9574 | . 222 6429 2923 Parts Sabotaged . | . . . . Parts Stolen . | . . . . Parts Stripped . | . . . . Power Chain Reactions 1 | . . 1 . Missiles Intercepted . | . . . . Alert | -11 -10 -9 -9 ------- Run | Scr Mat Mat Sto Peak Influence 396 | . 54 396 365 Initial . | . . . . Average 101 | . 8 125 156 Maximum Alert Level 1 | . . 1 1 Low Security (%) 76 | 100 100 71 61 Level 1 23 | . . 28 38 Level 2 . | . . . . Level 3 . | . . . . Level 4 . | . . . . Level 5 . | . . . . High Security . | . . . . Max Security . | . . . . Squads Dispatched 10 | . . 7 3 Investigation 4 | . . 3 1 Extermination . | . . . . Reinforcement 5 | . . 4 1 Assault 1 | . . . 1 Garrison . | . . . . Intercept . | . . . . Searches Triggered . | . . . . Construction Impeded . | . . . . Haulers Reinforced . | . . . . Active Scanning Responses . | . . . . Cargo Convoy Interrupts . | . . . . Stealth | -11 -10 -9 -9 --------- Run | Scr Mat Mat Sto Distress Signals 7 | . . 5 2 Communications Jammed . | . . . . Distress Signals . | . . . . Times Spotted 76 | . 7 43 26 Peak Tracking Total 5 | . 2 5 5 Tactical Retreats 1 | . . . 1 Traps | -11 -10 -9 -9 ------- Run | Scr Mat Mat Sto Traps Triggered 4 | . . 2 2 Indirectly . | . . . . Trap Hack Attempts . | . . . . Triggered . | . . . . Disarmed 6 | . . . 6 Reprogrammed . | . . . . Reused . | . . . . Traps Extracted . | . . . . Installed . | . . . . Triggered . | . . . . Machines | -11 -10 -9 -9 ---------- Run | Scr Mat Mat Sto Machines Disabled 11 | . . 8 3 Max in Single Turn 5 | . . 5 1 Garrison Access 1 | . . . 1 Machines Sabotaged . | . . . . Garrisons Compromised . | . . . . Overloaded Fab Kills . | . . . . Hacking | -11 -10 -9 -9 --------- Run | Scr Mat Mat Sto Machines Accessed 16 | . 3 9 4 Terminals 10 | . 3 4 3 Fabricators . | . . . . Repair Stations 3 | . . 2 1 Recycling Units 2 | . . 2 . Scanalyzers 1 | . . 1 . Garrison Access . | . . . . Total Hacks 47 | . 5 25 17 Successful 37 | . 4 19 14 Failed 10 | . 1 6 3 Catastrophic . | . . . . Database Lockouts . | . . . . Manual . | . . . . Terminals 29 | . 5 12 12 Fabricators . | . . . . Repair Stations 11 | . . 6 5 Recycling Units 5 | . . 5 . Scanalyzers 2 | . . 2 . Garrison Access . | . . . . Terminal Hacks 21 | . 4 8 9 Record 7 | . 1 3 3 Prototype ID Bank 1 | . . 1 . Emergency Access Points 1 | . . 1 . Alert Level 2 | . . . 2 Locate Traps 2 | . 1 . 1 Disarm Traps 1 | . . . 1 Dispatch Records 1 | . . 1 . Patrol Status 1 | . . . 1 Recall Reinforcements 1 | . . 1 . Recall Assault 2 | . . 1 1 Zone Layout 2 | . 2 . . Fabricator Hacks . | . . . . Repair Station Hacks 10 | . . 5 5 Scan Component 6 | . . 3 3 Repair 4 | . . 2 2 Recycling Unit Hacks 4 | . . 4 . Process 1 | . . 1 . Report Inventory 1 | . . 1 . Retrieve Components 2 | . . 2 . Scanalyzer 2 | . . 2 . Insert Component 1 | . . 1 . Analyze 1 | . . 1 . Garrison Access Hacks . | . . . . Unauthorized Hacks . | . . . . Terminals . | . . . . Fabricators . | . . . . Repair Stations . | . . . . Recycling Units . | . . . . Scanalyzers . | . . . . Garrison Access . | . . . . Data Cores Recovered . | . . . . Used . | . . . . Hacking Detections 9 | . 1 5 3 Full Trace Events 4 | . . 3 1 Feedback Events . | . . . . Feedback Blocked . | . . . . Robot Schematics Acquired . | . . . . Robots Built . | . . . . Authchips . | . . . . Time . | . . . . Total Robot Build Rating . | . . . . Part Schematics Acquired 1 | . . 1 . Parts Built . | . . . . Authchips . | . . . . Time . | . . . . Total Part Build Rating . | . . . . Parts Repaired 4 | . . 2 2 Time 127 | . . 51 76 Parts Recycled . | . . . . Recycled Matter 185 | . . 185 . Retrieved Matter . | . . . . Retrieved Components 10 | . . 10 . Parts Scanalyzed 1 | . . 1 . Part Schematics Acquired 1 | . . 1 . Parts Damaged . | . . . . Bothacking | -11 -10 -9 -9 ------------ Run | Scr Mat Mat Sto Used RIF Installer . | . . . . Robots Hacked . | . . . . Non-combat . | . . . . Combat . | . . . . Robot Hacks Applied . | . . . . Relay Couplers Released 2 | . . . 2 Machine Destruction 2 | . . . 2 Fabnet Peak Effective % . | . . . . Robots Rewired . | . . . . Allies Hacked . | . . . . Hacks Repelled . | . . . . Allies | -11 -10 -9 -9 -------- Run | Scr Mat Mat Sto Total Allies . | . . . . Largest Group . | . . . . Highest-Rated Group . | . . . . Highest-Rated Ally . | . . . . Total Orders . | . . . . Ally Attacks . | . . . . Total Damage . | . . . . Kills . | . . . . Allies Corrupted . | . . . . Allies Melted . | . . . . Intel | -11 -10 -9 -9 ------- Run | Scr Mat Mat Sto Robot Analysis Total . | . . . . Derelict Logs Recovered . | . . . . Drone Launches . | . . . . Drone Recoveries . | . . . . Exploration | -11 -10 -9 -9 ------------- Run | Scr Mat Mat Sto Turns Passed 4205 | 83 945 2493 684 Spaces Moved 1638 | 52 279 1027 280 Core 30 | 12 14 4 . Treads . | . . . . Legs 1493 | 40 160 1013 280 Wheels 105 | . 105 . . Hover . | . . . . Flight 10 | . . 10 . Fastest Speed 50 | 50 90 117 120 Average Speed 176 | 103 243 173 132 Slowest Speed 400 | 120 400 400 190 Overloaded Moves . | . . . . Propulsion Burnouts . | . . . . Robots Hopped . | . . . . Cave-ins Triggered . | . . . . Exploration Rate (%) 38 | 5 33 80 37 Regions Visited 3 Branch Regions 1 Pre-discovered Areas . | . . . . Known Exits Taken 3 | 1 1 1 . Unknown Exits Taken . | . . . . Scrap Searched . | . . . . Spaces Dug 14 | . . 13 1 Terrain Destroyed 93 | . . 92 1 Melee 2 | . . 1 1 Projectile 15 | . . 15 . AOE 76 | . . 76 . Terrain Rammed 62 | . 62 . . Walls Destroyed . | . . . . Machines Disabled . | . . . . Actions | -11 -10 -9 -9 --------- Run | Scr Mat Mat Sto Total 2397 | 81 440 1406 470 Wait 200 | 15 . 101 84 Move 1635 | 51 278 1026 280 Hop . | . . . . Pick Up 67 | 10 19 38 . Fast Attach 11 | . . 3 8 Attach 23 | 5 6 11 1 Detach . | . . . . Swap 43 | . 13 23 7 Drop 54 | . 15 31 8 Fire 284 | . 46 170 68 Melee 15 | . . 1 14 Ram 63 | . 63 . . Kick 2 | . . 2 . Crush . | . . . . Escape Stasis . | . . . . Rewire . | . . . . Trap . | . . . . Miscellaneous . | . . . . Route ------- -11/Scrapyard -10/Materials (discovered 2 exits: *Mat / *Min) -9/Materials (discovered 4 exits: *Mat / *Min x2 / *Sto) -9/Storage History --------- Turn | Location | Event 16 | -11/Scrapyard | Identified exit to Materials 16 | -11/Scrapyard | Discovered exit to Materials (range 13) 84 | -11/Scrapyard | Entered Materials 84 | -10/Materials | Evolved 1 slot: Utility x1 120 | -10/Materials | System corruption reached 10% 170 | -10/Materials | Core integrity fell below 50% 199 | -10/Materials | System corruption reached 30% 211 | -10/Materials | Core integrity fell below 20% 302 | -10/Materials | Build established: Hacker-Mutant 432 | -10/Materials | Identified exit to Mines 432 | -10/Materials | Discovered exit to Mines (range 13) 489 | -10/Materials | Identified exit to Materials 489 | -10/Materials | Discovered exit to Materials (range 17) 752 | -10/Materials | Build established: Scavenger-Mutant 1029 | -10/Materials | Entered another Materials area 1029 | -9/Materials | Evolved 2 slots: Power x1, Propulsion x1 1508 | -9/Materials | Identified exit to Mines 1508 | -9/Materials | Discovered exit to Mines (range 6) 1675 | -9/Materials | Repaired Lgt. Nuclear Core 1745 | -9/Materials | Discovered exit to Mines (range 14) 1816 | -9/Materials | Build established: Hacker-Mutant 2713 | -9/Materials | Repaired Imp. Aluminum Leg 2764 | -9/Materials | Core integrity fell below 50% 2799 | -9/Materials | Build established: Scavenger-Mutant 2863 | -9/Materials | Identified exit to Materials 2863 | -9/Materials | Discovered exit to Materials (range 14) 2893 | -9/Materials | Identified exit to Storage 2893 | -9/Materials | Discovered exit to Storage (range 17) 3522 | -9/Materials | Entered Storage 3690 | -9/Storage | Build established: Hacker-Mutant 4024 | -9/Storage | Repaired Broken Imp. Aluminum Leg 4057 | -9/Storage | Repaired Imp. Ion Engine 4156 | -9/Storage | Core integrity fell below 20% 4206 | -9/Storage | Destroyed by Y-45 Defender with Heavy Assault Rifle Last Messages --------------- Acquired Aluminum Leg. R-06 Scavenger collects Aluminum Leg. Dropped Broken Imp. Aluminum Leg. System corrupted: Energy discharge (-115). Critical hit (Burn: +37). K-01 Serf collects debris. Imp. Ion Engine destroyed. Acquired Aluminum Leg. K-01 Serf collects debris. Recycling unit begins recycling process. K-01 Serf collects debris. S-10 Pest suffers critical hit (Burn). Recycling unit begins recycling process. K-01 Serf collects debris. Overheating: System interference. Imp. Medium Laser temporarily disabled. Adv. Beam Cannon temporarily disabled. Overheating: Visual Processing Unit damaged (-2). K-01 Serf collects debris. S-10 Pest destroyed. Map ----- +----------------------------------------------------+ | % #?????????????????????????????????????????? | | ########?????????????????????????????????????????? | | ?????????????????????????????????????????????????? | | ?????????????????????????????????????????????????? | | ?????????????????????????????????????????????????? | | #????????????????????????????????????????????????? | | ######???????????????????????????????????????????? | | "====#???????????????????????????????????????????? | | #???????????????????????????????????????????? | | "====#???????????????????????????????????????????? | | ######???????????????????????????????????????????? | | ?????????????????????????????????????????????????? | | ?????????????????????????????????????????????????? | | ###??????????????????????????????????????????????? | | T"######???????????????????#####?????????????????? | | #???????????????????# #?????????????????? | | #???????????????????# #???????#?????????? | | #???????????????????#] ####??? ##????????? | | "" """ #???????????????????# ## ??? ?????????? | | "" """ #???????????????????#[[ ## #?? ??????????? | | "" """ #????????????????????! ?# #??+####???????? | | [ #?????##########?????! ## ## #???????? | | #?????# ####+##+## #!""" #???????? | | ###### ####### + [%=[sY !+%"Y" #???????? | | ########!=! # #[% ![*%Yk %#! #???????? | | [ = ]%]%[% %# #*[@ s[####** #???????? | | = !*]%=%[=% + +=%! *[=#???] #???????? | | =!]*]*%!% # ##########%#??? #??????? | | #####+##[!=**# #????????#[#????#####??????? | | ??# T#### ## #????????#[#????######?????? | | ??#" "##??# ## #????????#%#?? #?????? | | ??#]]]#???# ###########????????#[# [ #?????? | | ??#]]]#???# ######??????????#[+ ! [ #?????? | | ??#####???# #??????????#[# !=!#?????? | | ??????????# T #??????????#%#####+#####?????? | | ??????????# ### ##??????????#= #?????????? | | ??????????## ####+#########???# #?????????? | | ???????????# # #???# ^ #?????????? | | ???????????# + """ """ #???# " #?????????? | | ???????????# # """ """ #???# !" #?????????? | | ???????????# # """ """ #???# #?????????? | | ?????????? # #???# +?????????? | | ????????? ############+#???#%#"T"###?????????? | | ????????#######??# # ##### #####???????????? | | ?????????????????# " " + =!*% #???????????????? | | ?????????????????# "R" #########???????????????? | | ?????????????????# """ #???????????????????????? | | ?????????????????# #???????????????????????? | | ?????????????????#########???????????????????????? | | ?????????????????????????????????????????????????? | +----------------------------------------------------+ Best States ------------- Heat Dissipation 28 Energy Generation 23 Energy Capacity 415 Matter Stores 300 Matter Capacity 300 Sight Range 18 Robot Scan Range 14 Terrain Scan Range 16 Terrain Scan Density 10 ECM Strength 1 Resistance: KI 35 Resistance: TH 35 Resistance: EX 35 Resistance: EM 35 Resistance: I 35 Resistance: S 35 Resistance: P 35 Evasion (%) 55 Targeting Accuracy 6 Offensive Hacking 30 Item Schematics ----------------- Sml. Laser | -9/Materials | Scanalyzed Robot Schematics ------------------ None Fabricated ------------ Nothing Alien Tech Used ----------------- None Achievements -------------- GoHome() It's Just You Challenges ------------ None Game ------ Seed DynamicPlasmaInsulator Manual? 0 Play Time 00:55:32 Cumulative 10.6 hours Start 2022.04.16 @ 20:45:27 End 2022.04.17 @ 10:45:56 Sessions 3 Manual Loads 0 Difficulty Explorer Special Mode None Game No. 21 Rogue 13 Adventurer 0 Explorer 8 Win Type - Total 0 Types 0/0/0/0/0/0/0/0/0 Lore% 4 Gallery% 19 Achievement% 14 Wizard Run 0 Options --------- ASCII 0 Keyboard 0 Movement Mouse Keybinds 0 Fullscreen 1 Font 12/Smallcaps Map View 83x54 Tactical HUD 0 Map Filters NONE Filters NONE Steam 1 RUN: e89d17fb-8624-4cef-ac6a-b1db96ca111a